bitfinex/quotes_ETHUSD_20251024
["timestamp","ask_amount","ask_price","bid_price","bid_amount"]
[1761318671440,0.3,3914.7,3913.8,2.55501339]
[1761318671618,0.3,3914.7,3913.6,0.64964]
[1761318671950,0.3,3914.7,3914.6,2.55453941]
[1761318672109,0.2992,3914.7,3914.6,2.55453941]
[1761318673121,0.2992,3914.7,3914.1,0.2069]
[1761318673339,0.7317,3914.7,3914.1,2.55485698]
[1761318673534,0.7317,3914.7,3914.2,2.55478633]
[1761318673746,0.128,3914.5,3914.3,2.55471431]
[1761318673922,0.128,3914.5,3913.9,0.128]
[1761318674255,2.98718755,3914.4,3913.6,2.55514597]
[1761318674455,0.128,3914.0,3913.4,0.128]
[1761318674609,0.2152,3913.9,3913.8,2.55506157]
[1761318674815,0.3002,3914.7,3914.1,2.55481053]
[1761318675117,0.128,3914.4,3913.8,2.68304193]
[1761318675434,0.7327,3914.7,3914.3,2.55469387]
[1761318675632,0.128,3914.5,3914.4,2.55466993]
[1761318676052,0.7327,3914.7,3914.6,2.55453941]
[1761318676053,0.3002,3914.7,3914.6,2.55453941]
[1761318676215,0.3002,3914.7,3914.6,2.5800848]
[1761318676415,0.3002,3914.7,3914.6,2.55453941]
[1761318678073,0.3002,3914.7,3913.6,0.4492]
[1761318678222,0.3002,3914.7,3914.1,0.2069]
[1761318678558,0.3002,3914.7,3913.4,0.4492]
[1761318678559,0.4325,3914.6,3913.4,2.55532273]
[1761318678754,0.4325,3914.6,3913.5,0.4492]
[1761318678962,0.4325,3914.6,3914.4,2.55464869]
[1761318679133,0.4325,3914.6,3914.5,2.55460467]
[1761318679560,0.3002,3914.7,3914.5,2.55460467]
[1761318679768,0.3002,3914.7,3914.6,2.55453941]
[1761318680862,0.3002,3914.7,3913.9,2.55499629]
[1761318681175,0.7327,3914.7,3914.5,2.55459536]
[1761318681559,0.3002,3914.7,3914.6,2.55453941]
[1761318682028,0.7327,3914.7,3914.6,2.55453941]
[1761318682357,0.7327,3914.7,3913.6,0.4492]
[1761318682526,0.4325,3914.6,3914.0,2.55492149]
[1761318682863,0.4325,3914.6,3914.0,2.55487178]
[1761318683032,0.4325,3914.6,3914.0,2.55492228]
[1761318683375,0.4325,3914.6,3914.1,2.55486573]
[1761318683874,0.4325,3914.6,3913.7,2.55507737]
[1761318684041,0.4325,3914.6,3913.5,2.55522031]
[1761318684042,2.98708909,3914.6,3913.5,2.55522031]
[1761318684229,0.2179,3913.6,3913.3,0.002]
[1761318684431,0.2179,3913.6,3913.4,2.55530587]
[1761318684628,0.6504,3913.6,3913.5,2.55525744]
[1761318684862,0.6504,3913.6,3913.3,2.55734808]
[1761318685041,0.4325,3913.5,3913.4,2.55532273]
[1761318685361,0.4325,3913.5,3913.4,4.11052273]
[1761318685580,0.6504,3913.8,3913.3,0.002]
[1761318685871,3.06220273,3913.4,3913.3,0.002]
[1761318686172,2.55558395,3913.0,3912.5,0.002]
[1761318686357,3.06246395,3913.0,3912.5,0.002]
[1761318686555,3.62366395,3913.0,3912.5,0.002]
[1761318686869,5.05086395,3913.0,3912.5,0.002]
[1761318687577,0.4332,3913.0,3912.5,0.002]
[1761318688055,0.4332,3913.0,3912.7,2.55577875]
[1761318688429,0.4332,3913.0,3912.5,0.002]
[1761318688830,3.49566395,3913.0,3912.5,0.002]
[1761318690053,5.05086395,3913.0,3912.5,0.002]
[1761318690253,19.57420702,3913.0,3912.5,0.002]
[1761318690469,5.05086395,3913.0,3912.5,0.002]
[1761318691069,0.94008,3913.0,3912.5,0.002]
[1761318691283,0.4332,3913.5,3912.5,0.002]
[1761318691483,0.2152,3913.8,3913.2,2.55542185]
[1761318691950,0.2152,3913.8,3913.3,2.55536898]
[1761318692142,1.5552,3914.5,3913.5,2.55525744]
[1761318692339,2.55456705,3914.6,3913.4,0.02555322]
[1761318692340,2.98571431,3914.4,3913.6,2.55516249]
[1761318692590,2.5547393,3914.3,3913.5,2.5552376]
[1761318692761,2.5547393,3914.3,3913.2,2.5554057]
[1761318692762,0.431,3914.3,3913.2,0.32140852]
[1761318693083,0.431,3914.3,3913.6,2.55517405]
[1761318693450,2.98574673,3914.3,3913.6,2.55517405]
[1761318693651,2.55480287,3914.2,3913.5,2.55525122]
[1761318694189,0.2519,3914.9,3913.8,2.55501739]
[1761318694351,0.2519,3914.9,3913.7,2.5551253]
[1761318694352,0.431,3914.6,3913.7,2.5551253]
[1761318694548,2.554681,3914.4,3913.6,2.55518157]
[1761318694881,2.55467791,3914.4,3913.7,2.55511168]
[1761318695176,2.55474051,3914.3,3913.5,2.55521076]
[1761318695381,0.431,3914.4,3913.6,2.55515986]
[1761318695679,0.431,3914.4,3913.8,2.55505568]
[1761318696180,2.98491456,3914.4,3913.3,0.4496]
[1761318696392,2.98491456,3914.4,3913.6,2.55517425]
[1761318696553,2.98491456,3914.4,3913.3,0.4496]
[1761318696554,0.50688,3914.6,3912.7,0.4496]
[1761318696873,0.128,3913.7,3913.1,0.128]
[1761318697047,16.58542307,3914.6,3912.9,0.002]
[1761318697248,0.128,3913.3,3913.1,2.55546956]
[1761318697449,0.128,3913.3,3913.0,2.55557712]
[1761318697655,0.128,3913.3,3913.0,3.07970712]
[1761318697852,0.128,3913.3,3913.0,0.52413]
[1761318698063,0.128,3913.3,3912.9,2.55764265]
[1761318698262,0.4278,3913.2,3912.9,2.5576343]
[1761318698467,0.4278,3913.2,3912.9,0.002]
[1761318698468,0.128,3913.1,3912.9,0.002]
[1761318698890,0.4278,3913.0,3912.9,0.002]
[1761318699056,3.49026395,3913.0,3912.9,0.002]
[1761318699485,0.93468,3913.0,3912.9,0.002]
[1761318699655,3.49026395,3913.0,3912.9,0.002]
[1761318701671,0.93468,3913.0,3912.9,0.002]
[1761318701870,3.49026395,3913.0,3912.9,0.002]
[1761318702085,0.4278,3913.0,3912.9,0.002]
[1761318702260,2.98338395,3913.0,3912.9,0.002]
[1761318703178,0.128,3913.0,3912.9,0.002]
[1761318705115,0.128,3913.0,3912.9,2.55764926]
[1761318705319,0.128,3913.0,3912.9,3.32457343]
[1761318705486,0.2191,3913.8,3913.1,2.5554961]
[1761318705692,0.128,3913.2,3913.0,2.55554031]
[1761318706411,0.128,3913.2,3913.1,2.55551864]
[1761318707322,0.128,3913.2,3913.0,2.55557532]
[1761318707511,0.128,3913.2,3913.1,2.55551864]
[1761318708093,4.52131394,3917.5,3913.1,2.55551864]
[1761318708094,0.1784,3913.7,3913.1,2.55551864]
[1761318708320,0.1784,3913.7,3913.2,2.55543445]
[1761318708833,0.6464,3913.7,3913.2,2.55543445]
[1761318709426,0.1784,3913.7,3913.2,2.55543445]
[1761318709795,0.50688,3914.3,3913.3,0.4307]
[1761318710122,0.4652,3914.3,3913.6,2.55518808]
[1761318710325,0.4652,3914.3,3913.5,2.55521484]
[1761318710326,2.55482212,3914.2,3913.5,2.55521484]
[1761318710527,2.55482212,3914.2,3913.6,2.55518409]
[1761318710902,2.55482212,3914.2,3913.3,2.55537481]
[1761318711202,2.55482212,3914.2,3913.1,0.2081]
[1761318711203,3.02008669,3914.1,3913.4,2.55527733]
[1761318711714,3.02015129,3914.0,3913.3,2.55538214]
[1761318711927,3.2044029,3913.9,3913.2,2.55543358]
[1761318712128,3.2044029,3913.9,3913.2,2.55544565]
[1761318712430,2.55514046,3913.7,3913.0,0.002]
[1761318712647,3.02314046,3913.7,3913.1,2.55550367]
[1761318712841,0.468,3913.6,3913.1,2.55550367]
[1761318713352,0.468,3913.6,3913.0,0.002]
[1761318713553,3.06196321,3913.8,3913.1,2.55547496]
[1761318713906,3.06196077,3913.8,3913.1,2.55547496]
[1761318714250,3.52996077,3913.8,3913.0,2.55754136]
[1761318714434,2.55512795,3913.7,3913.1,2.55551488]
[1761318714616,3.52995239,3913.8,3913.1,2.55551488]
[1761318714954,0.468,3913.7,3913.0,0.002]
[1761318715122,0.468,3913.7,3913.1,2.55550844]
[1761318715123,2.55512718,3913.7,3913.1,2.55550844]
[1761318715330,3.02325283,3913.6,3913.0,0.002]
[1761318715546,2.55527519,3913.5,3913.0,0.002]
[1761318715857,0.468,3913.5,3913.0,0.002]
[1761318716059,3.02332705,3913.4,3913.0,0.002]
[1761318716242,0.468,3913.4,3913.0,0.002]
[1761318716746,3.02332785,3913.4,3913.0,0.002]
[1761318716911,3.02337564,3913.4,3913.0,0.002]
[1761318717116,3.02339199,3913.3,3913.0,0.002]
[1761318717422,0.468,3913.3,3913.0,0.002]
[1761318717626,3.02339755,3913.3,3913.0,0.002]
[1761318718216,0.468,3913.2,3913.0,0.002]
[1761318718838,2.55533789,3913.4,3913.0,0.002]
[1761318719313,2.55544376,3913.3,3913.0,0.002]
[1761318719526,3.02424376,3913.3,3913.0,0.002]
[1761318719854,0.4688,3913.2,3913.0,0.002]
[1761318720258,0.468,3913.2,3913.0,0.002]
[1761318720623,2.55532343,3913.4,3913.0,0.002]
[1761318720825,2.55527257,3913.5,3913.0,0.002]
[1761318721053,3.06200913,3913.7,3913.0,0.002]
[1761318721252,2.55520591,3913.6,3913.0,0.002]
[1761318721953,2.55520591,3913.6,3913.0,2.55758203]
[1761318722153,0.68542365,3913.8,3913.0,0.4628]
[1761318722467,0.1784,3913.9,3913.4,2.55530239]
[1761318722756,0.1784,3913.9,3913.3,2.55536317]
[1761318722969,2.73340209,3913.9,3913.3,2.55536317]
[1761318723172,2.55507272,3913.8,3913.1,0.2089]
[1761318723332,3.02228256,3913.8,3913.1,2.55550222]
[1761318723733,0.4672,3913.8,3913.2,2.55544827]
[1761318724366,0.1784,3913.9,3913.0,0.002]
[1761318724552,2.55495383,3914.0,3913.4,2.55532026]
[1761318724923,2.55500334,3913.9,3913.3,0.2089]
[1761318725267,2.55501896,3913.9,3913.2,2.55543854]
[1761318725469,0.1766,3913.8,3913.1,2.55551286]
[1761318725672,0.1766,3913.8,3913.0,0.4628]
[1761318725882,0.50688,3914.0,3913.0,0.4628]
[1761318726036,3.24016105,3914.3,3913.1,0.32293715]
[1761318726230,0.50688,3914.3,3913.6,2.55518465]
[1761318726442,0.50688,3914.3,3913.2,0.4608]
[1761318726443,0.50688,3914.3,3913.7,2.55512122]
[1761318726645,0.50688,3914.3,3913.2,3.01619959]
[1761318726928,0.97588,3914.3,3913.5,2.55525277]
[1761318727247,2.5548626,3914.2,3913.5,2.55525277]
[1761318727452,2.55488003,3914.1,3913.5,2.55525277]
[1761318727868,2.55488003,3914.1,3913.1,2.87840165]
[1761318728051,0.4325,3914.0,3913.2,2.55544663]
[1761318728238,0.4325,3914.0,3913.1,0.51169016]
[1761318728239,0.128,3913.6,3913.1,0.51169016]
[1761318728441,0.128,3913.6,3913.4,2.55525995]
[1761318728686,0.128,3913.6,3913.3,2.5553621]
[1761318728884,0.128,3913.6,3913.1,2.55551864]
[1761318729095,0.128,3913.6,3913.3,2.55537805]
[1761318729562,0.128,3913.6,3913.2,2.55545256]
[1761318729771,0.128,3913.6,3913.0,0.13]
[1761318729772,0.128,3913.6,3913.1,2.55549424]
[1761318729988,0.128,3913.6,3913.1,2.55749424]
[1761318730183,3.20119731,3913.9,3913.2,2.55544536]
[1761318730483,0.128,3913.4,3913.1,0.002]
[1761318730836,0.4096,3913.4,3913.1,0.002]
[1761318731150,2.9649286,3913.4,3913.1,0.002]
[1761318731559,2.55545333,3913.2,3913.1,0.002]
[1761318731782,2.96505333,3913.2,3913.1,0.002]
[1761318732582,0.4096,3913.2,3913.1,0.002]
[1761318732887,2.55532378,3913.4,3913.1,0.002]
[1761318733108,0.68542365,3913.6,3913.1,0.002]
[1761318733288,0.68542365,3913.7,3913.2,0.2089]
[1761318733449,1.36373528,3914.2,3913.1,0.002]
[1761318733450,0.4096,3913.6,3913.1,0.002]
[1761318733799,0.2366,3913.8,3913.1,0.2109]
[1761318734004,0.50688,3913.8,3913.1,2.76639738]
[1761318734183,2.55513158,3913.7,3913.1,2.76641353]
[1761318734386,2.79173158,3913.7,3913.1,2.55751353]
[1761318734551,3.24044517,3913.9,3913.1,0.2109]
[1761318734757,2.55502152,3913.9,3913.3,2.55537946]
[1761318734989,0.68542365,3914.1,3913.1,0.95834337]
[1761318735165,0.001,3914.4,3913.1,0.6813]
[1761318735364,0.001,3914.4,3914.3,2.7620352]
[1761318735751,0.001,3914.4,3914.3,3.2324352]
[1761318736294,0.001,3914.4,3914.3,18.69351675]
[1761318736455,0.3,3915.5,3914.8,1.5552]
[1761318736808,0.3,3915.5,3915.4,4.31511746]
[1761318736953,0.3,3915.5,3914.9,0.2059]
[1761318737309,0.3,3915.5,3915.4,2.55401746]
[1761318737505,0.3,3915.5,3915.4,2.80941921]
[1761318737796,0.3,3915.5,3915.4,3.27981921]
[1761318738369,0.3,3915.5,3915.4,4.83501921]
[1761318740305,1e-08,3915.5,3915.4,4.83501921]
[1761318740502,1e-08,3915.5,3915.4,20.29610076]
[1761318740705,1e-08,3915.5,3915.4,4.83501921]
[1761318741060,1e-08,3915.5,3915.4,4.96301921]
[1761318743064,1e-08,3915.5,3915.4,20.42410076]
[1761318743565,0.68542365,3918.4,3915.4,17.5196833]
[1761318743887,0.68542365,3919.7,3918.4,1.5552]
[1761318744086,2.26065697,3921.1,3918.3,15.66678155]
[1761318744087,0.68542365,3920.1,3919.5,4.31394583]
[1761318744300,0.89317819,3922.0,3919.5,4.31394583]
[1761318744301,0.1290612,3922.2,3919.5,17.22368155]
[1761318744502,0.2366,3921.8,3919.6,2.0256]
[1761318744718,0.2366,3921.8,3919.7,0.4704]
[1761318745005,0.2308,3923.0,3920.2,4.10609026]
[1761318745160,0.4325,3922.6,3920.2,4.57649026]
[1761318745361,0.2366,3921.8,3920.2,4.57649026]
[1761318746158,0.2366,3922.5,3920.2,2.1456]
[1761318746356,0.2366,3922.5,3920.7,15.46108155]
[1761318746598,0.2366,3922.5,3920.8,0.4704]
[1761318746959,0.4307,3922.4,3920.8,2.0256]
[1761318747160,0.4307,3922.4,3920.3,0.50688]
[1761318747161,2.54993702,3921.7,3920.1,0.4704]
[1761318747362,2.54972734,3922.0,3919.4,0.4704]
[1761318747363,0.50688,3922.0,3919.4,0.4704]
[1761318747559,0.50688,3921.8,3919.4,0.4704]
[1761318747803,0.50688,3920.9,3919.7,2.55120274]
[1761318747961,0.50688,3920.9,3919.5,2.75869342]
[1761318747962,3.05731858,3920.9,3919.5,2.75869342]
[1761318748163,0.2321,3919.6,3918.3,0.6761]
[1761318748561,0.2321,3919.6,3918.4,2.55206206]
[1761318748891,0.4305,3919.9,3916.4,0.4704]
[1761318748892,0.50688,3919.4,3916.4,0.4704]
[1761318749088,0.2366,3918.4,3917.5,0.76631386]
[1761318749296,0.4286,3919.3,3917.4,15.46108155]
[1761318749462,0.4286,3919.7,3918.4,2.55200609]
[1761318749673,0.2341,3919.9,3918.2,2.55216834]
[1761318749883,0.2341,3919.9,3918.3,1.5552]
[1761318750109,0.2341,3919.9,3918.3,2.0256]
[1761318750295,0.2341,3919.9,3918.2,2.0256]
[1761318750477,0.2341,3919.9,3919.1,2.55159126]
[1761318750676,0.2341,3919.9,3918.8,2.55179321]
[1761318750886,0.2341,3919.9,3918.2,2.0256]
[1761318751205,0.4286,3919.8,3918.9,2.55173453]
[1761318751380,0.4286,3919.8,3919.0,2.55163688]
[1761318751583,0.4286,3919.8,3919.1,2.55160623]
[1761318751760,0.4286,3919.8,3919.1,2.55158235]
[1761318752196,2.55134195,3919.6,3917.8,0.4704]
[1761318752364,0.50688,3919.7,3918.6,1.5552]
[1761318752707,0.2366,3918.7,3917.2,0.4704]
[1761318753010,0.2366,3918.7,3916.6,15.93148155]
[1761318753011,0.50688,3918.6,3916.6,15.93148155]
[1761318753214,0.50688,3918.5,3916.6,0.4704]
[1761318753373,0.50688,3918.5,3916.1,15.93148155]
[1761318753698,0.128,3917.7,3917.1,0.128]
[1761318754132,0.128,3917.4,3916.8,2.6810865]
[1761318754420,0.128,3917.4,3916.6,1.5552]
[1761318754421,0.2345,3917.6,3916.3,2.55343053]
[1761318754622,0.128,3917.2,3916.8,2.55307179]
[1761318754787,0.128,3917.2,3916.9,2.55301437]
[1761318754990,0.128,3917.2,3916.7,0.128]
[1761318754991,0.128,3917.2,3917.0,2.55296116]
[1761318755281,0.128,3917.2,3916.8,2.55307157]
[1761318755686,0.128,3917.2,3916.7,0.128]
[1761318755881,0.128,3917.2,3916.9,1.5552]
[1761318756322,0.128,3917.2,3916.9,2.55302504]
[1761318756829,0.128,3917.2,3916.7,0.128]
[1761318756983,0.2366,3918.7,3917.2,2.55284386]
[1761318757184,0.2366,3919.0,3917.3,2.0256]
[1761318757399,0.2366,3919.0,3917.3,1.5552]
[1761318757598,0.2366,3919.0,3918.6,2.55189528]
[1761318757799,2.55057662,3920.7,3918.3,1.5552]
[1761318757998,0.6792,3919.9,3918.8,1.5552]
[1761318758181,0.2341,3919.9,3918.8,1.5552]
[1761318758389,0.2219,3920.3,3918.9,4.13245381]
[1761318758624,15.46108155,3922.3,3918.9,4.13245381]
[1761318758625,0.4572,3921.2,3920.5,2.55068385]
[1761318758799,0.001,3922.5,3920.2,0.2057]
[1761318758800,0.702,3921.6,3920.2,0.2057]
[1761318758997,0.702,3921.6,3920.4,2.55072913]
[1761318759198,0.702,3921.6,3920.3,1.5552]
[1761318759199,0.4675,3921.5,3920.3,1.5552]
[1761318759529,0.4675,3921.5,3920.2,1.5552]
[1761318759689,0.4675,3921.5,3919.2,0.645]
[1761318759888,0.4675,3921.5,3919.3,1.5552]
[1761318760090,0.50688,3920.8,3919.9,2.55102107]
[1761318760425,0.50688,3920.8,3919.0,15.46108155]
[1761318760426,0.50688,3921.1,3918.6,0.4377]
[1761318760598,0.50688,3920.8,3918.6,1.9929]
[1761318760921,0.50688,3920.6,3919.1,1.5552]
[1761318761108,0.50688,3920.6,3918.5,15.46108155]
[1761318761109,0.50688,3920.5,3918.6,1.9929]
[1761318761311,0.2345,3921.6,3918.9,1.5552]
[1761318761534,3.01759652,3921.5,3920.3,2.55079381]
[1761318761737,2.5502077,3921.3,3920.3,2.55079381]
[1761318761941,0.4675,3921.4,3920.4,2.55074855]
[1761318762151,3.01762943,3921.4,3920.4,2.55070022]
[1761318762317,0.2345,3921.6,3919.8,0.2074]
[1761318762318,0.4675,3921.3,3919.8,0.2074]
[1761318762518,2.5503516,3921.1,3920.1,1.5552]
[1761318762739,3.05724994,3921.0,3920.1,2.55094772]
[1761318762938,0.50688,3920.8,3920.1,1.5552]
[1761318763139,0.50688,3921.3,3920.1,2.55092133]
[1761318763457,0.4675,3921.5,3919.9,1.5552]
[1761318763458,0.50688,3920.9,3920.2,2.55089026]
[1761318763766,0.50688,3921.0,3920.2,2.55089026]
[1761318763914,0.97438,3921.0,3920.2,2.55089026]
[1761318764254,3.52475108,3921.0,3920.1,2.55095143]
[1761318764554,0.50688,3920.5,3919.4,0.2074]
[1761318764854,0.50688,3920.5,3919.4,2.75879527]
[1761318765152,3.5250819,3920.5,3919.7,1.5552]
[1761318765352,3.5250819,3920.5,3919.7,2.55120657]
[1761318765353,0.97438,3920.5,3919.7,2.55120657]
[1761318765660,3.383,3920.4,3919.4,0.2074]
[1761318765819,3.383,3920.4,3919.9,2.55108389]
[1761318766014,0.2219,3920.3,3919.9,2.55108389]
[1761318766243,0.6894,3920.3,3919.3,0.2074]
[1761318766553,0.2219,3920.3,3919.7,1.5552]
[1761318766753,0.50688,3920.2,3919.4,4.10659451]
[1761318766953,0.97438,3920.2,3919.7,2.55120366]
[1761318767115,0.1272,3919.8,3919.7,2.55120366]
[1761318767323,0.1272,3919.8,3919.6,2.55126729]
[1761318767521,0.2472,3920.0,3919.7,2.55121052]
[1761318767718,0.1272,3919.8,3919.7,4.10641052]
[1761318768157,0.1264,3919.8,3919.7,4.10641052]
[1761318768923,2.6634,3919.8,3919.7,4.64582173]
[1761318769220,0.4675,3920.7,3919.7,4.64582173]
[1761318769221,0.4675,3920.7,3919.8,1.5552]
[1761318769420,3.38,3920.0,3919.9,4.64606125]
[1761318769626,0.1272,3920.3,3920.2,4.10609026]
[1761318769821,0.1272,3920.3,3920.2,2.09497577]
[1761318770022,0.1272,3920.3,3920.2,1.5552]
[1761318770242,0.1272,3920.3,3919.7,0.1272]
[1761318770444,0.4675,3920.2,3919.8,0.54013469]
[1761318770644,0.1272,3919.9,3919.6,1.5552]
[1761318770819,0.4675,3920.2,3919.5,2.55132969]
[1761318770820,0.1272,3919.7,3919.5,1.5552]
[1761318771023,0.1272,3919.7,3919.6,0.54035396]
[1761318771222,0.1272,3919.7,3919.3,1.5552]
[1761318771450,0.1272,3919.7,3919.1,0.1272]
[1761318771451,0.1272,3919.7,3919.4,3.09221368]
[1761318771653,0.1272,3919.7,3919.5,3.09216189]
[1761318771854,0.1272,3919.7,3919.3,1.5552]
[1761318772042,3.381,3919.8,3919.7,2.55121565]
[1761318772231,3.378,3919.8,3919.7,2.55121565]
[1761318772440,3.5052,3919.8,3919.7,0.54148475]
[1761318772784,3.9727,3919.8,3919.7,0.54148475]
[1761318772958,0.1272,3919.8,3919.7,0.54148475]
[1761318773135,2.34558,3919.8,3919.7,0.54164404]
[1761318773342,0.50688,3919.5,3919.1,0.67340667]
[1761318773668,0.50688,3919.7,3919.2,0.54240385]
[1761318773669,3.379,3919.4,3919.2,0.54240385]
[1761318773853,3.379,3919.4,3919.0,2.55164826]
[1761318774052,3.379,3919.3,3918.9,2.55173385]
[1761318774228,3.379,3919.3,3919.2,2.55154113]
[1761318776575,3.379,3919.3,3919.1,2.55159893]
[1761318776783,3.379,3919.3,3919.2,2.55154113]
[1761318777073,3.379,3919.3,3919.1,2.55154732]
[1761318777275,3.379,3919.3,3919.0,2.55165119]
[1761318777471,3.379,3919.3,3919.1,0.54374677]
[1761318777678,3.379,3919.3,3919.0,2.5516282]
[1761318777841,3.379,3919.3,3919.1,2.55159414]
[1761318778439,3.379,3919.3,3919.2,2.55154113]
[1761318778643,3.377,3919.3,3919.2,3.09515775]
[1761318778844,0.2219,3920.0,3919.2,3.09515775]
[1761318779065,0.2219,3920.0,3919.1,0.2074]
[1761318779066,3.376,3919.9,3919.5,2.5513205]
[1761318779265,3.376,3919.9,3919.5,2.55129257]
[1761318779679,3.376,3919.9,3919.6,2.5512635]
[1761318779985,0.2219,3920.0,3919.8,2.55114128]
[1761318780170,0.2219,3920.0,3919.6,2.55127801]
[1761318780171,0.4389,3920.7,3919.2,1.5552]
[1761318780366,0.609,3920.6,3919.4,2.22860667]
[1761318780567,0.4389,3921.1,3920.7,2.55056495]
[1761318780878,0.2345,3921.6,3920.8,1.58070499]
[1761318781182,2.021,3921.5,3921.4,2.55010965]
[1761318781551,3.378,3921.5,3921.4,2.55010965]
[1761318781975,3.378,3921.5,3921.1,0.2097]
[1761318782178,3.378,3921.5,3921.4,2.55010965]
[1761318782347,3.378,3921.5,3920.5,0.67340667]
[1761318782555,3.8169,3921.5,3920.6,0.54203826]
[1761318782777,3.378,3921.5,3920.9,1.5552]
[1761318782962,3.378,3921.5,3920.8,2.55044331]
[1761318783166,0.4389,3921.4,3920.3,0.67340667]
[1761318783376,2.54979268,3921.9,3920.9,2.55043364]
[1761318783377,0.50688,3921.6,3920.9,2.55043364]
[1761318783576,0.2312,3922.2,3920.9,2.55043364]
[1761318783577,0.2312,3922.7,3921.8,0.2097]
[1761318783763,3.376,3922.4,3921.3,0.2097]
[1761318783966,0.1272,3922.0,3921.8,2.54978706]
[1761318784165,0.1272,3922.0,3921.9,2.54978454]
[1761318784679,3.5022,3922.0,3921.9,2.54978454]
[1761318785053,0.1272,3922.0,3921.5,1.5552]
[1761318785256,0.1272,3922.0,3921.3,0.2097]
[1761318785257,0.001,3922.5,3922.4,2.54945951]
[1761318785491,0.001,3922.5,3922.4,4.64669401]
[1761318785685,0.001,3922.5,3922.4,5.08969401]
[1761318785858,0.001,3922.5,3922.4,5.99557873]
[1761318786058,0.001,3922.5,3922.4,5.76570601]
[1761318786253,1.5552,3925.1,3922.4,5.76570601]
[1761318786254,0.32,3925.6,3922.6,2.54932952]
[1761318786456,0.32,3925.6,3922.5,1.5552]
[1761318786457,0.497,3925.5,3924.5,2.54803782]
[1761318786664,0.32,3925.6,3924.3,1.5552]
[1761318786864,0.32,3925.6,3924.4,1.19198758]
[1761318787064,2.64,3925.5,3924.5,0.98348758]
[1761318787266,0.32,3925.6,3925.5,1.7649]
[1761318787465,1.337,3925.6,3924.4,1.76188732]
[1761318787701,1.896,3925.5,3924.5,0.53883425]
[1761318787900,2.3396,3925.5,3923.7,0.2097]
[1761318788100,3.8186,3925.4,3923.7,0.97490363]
[1761318788300,3.375,3925.3,3923.7,0.97490363]
[1761318788501,0.50688,3925.0,3923.7,0.2097]
[1761318788703,3.376,3924.9,3923.7,0.2097]
[1761318788877,3.376,3924.8,3923.7,0.2097]
[1761318789277,3.377,3924.7,3923.7,0.2097]
[1761318789482,2.41988,3925.5,3923.7,0.2097]
[1761318789483,3.376,3924.6,3923.7,0.2097]
[1761318789693,3.376,3924.5,3923.1,0.4371]
[1761318789890,0.4436,3924.8,3923.6,1.5552]
[1761318790093,0.4436,3924.8,3923.5,1.5552]
[1761318790291,3.376,3924.7,3924.0,2.54839211]
[1761318790492,3.376,3924.7,3923.8,2.54853457]
[1761318790805,3.376,3924.7,3924.1,2.54835098]
[1761318791301,3.376,3924.7,3924.0,0.02548419]
[1761318791302,3.376,3924.7,3922.5,0.67628732]
[1761318791503,0.50688,3924.5,3922.5,0.4371]
[1761318791705,2.54859737,3923.8,3922.5,0.4371]
[1761318791906,3.375,3923.7,3922.6,2.54932952]
[1761318792081,3.375,3923.7,3922.3,0.2085]
[1761318792283,0.6857,3923.6,3922.3,0.2085]
[1761318792582,0.50688,3923.5,3921.5,0.2085]
[1761318792806,0.50688,3923.5,3921.6,2.5499796]
[1761318792807,2.54911106,3923.0,3921.6,2.5499796]
[1761318793108,3.0558188,3923.3,3922.1,2.54965423]
[1761318793275,3.0558188,3923.3,3921.5,0.2085]
[1761318793276,0.50688,3923.1,3922.0,2.54969504]
[1761318793475,2.54916645,3922.9,3922.0,2.54969504]
[1761318793671,2.54920449,3922.8,3921.8,1.5552]
[1761318793876,3.0558871,3923.1,3921.8,1.5552]
[1761318793877,3.381,3922.7,3921.9,0.02549784]
[1761318794105,0.6855,3923.6,3921.8,0.4371]
[1761318794106,3.381,3922.6,3922.3,2.54951498]
[1761318794315,3.381,3922.6,3921.8,0.4371]
[1761318794471,0.4651,3923.5,3921.8,1.9923]
[1761318794674,3.8461,3923.4,3921.8,1.9923]
[1761318795100,0.2204,3923.6,3922.1,1.5552]
[1761318795329,2.98731939,3925.7,3924.3,2.54819695]
[1761318795330,0.4294,3924.9,3924.3,2.54819695]
[1761318795501,0.4294,3924.9,3923.5,2.88443766]
[1761318795502,0.1272,3924.5,3924.4,0.0254816]
[1761318795689,0.1272,3924.6,3923.9,0.1272]
[1761318795886,0.1272,3924.6,3924.5,2.54809529]
[1761318796212,1.288,3924.6,3924.5,2.54809529]
[1761318796383,3.394,3924.6,3924.5,2.54809529]
[1761318796579,3.394,3924.6,3922.6,3.386]
[1761318796778,0.4629,3924.5,3923.1,1.5552]
[1761318797010,3.395,3924.4,3923.7,1.5552]
[1761318797214,3.395,3924.4,3922.5,14.66460367]
[1761318797215,3.395,3924.4,3923.1,2.54895717]
[1761318797510,0.50688,3924.2,3923.2,2.54890241]
[1761318797726,3.397,3924.1,3922.5,0.2097]
[1761318798029,2.54861088,3923.8,3922.7,1.5552]
[1761318798181,6.40825779,3924.1,3922.5,0.2097]
[1761318798182,0.4629,3924.0,3922.5,0.2097]
[1761318798384,0.96978,3924.0,3922.5,0.2097]
[1761318798594,5.81588,3923.9,3922.5,0.2097]
[1761318798801,8.36436948,3923.9,3922.5,0.2097]
[1761318799023,0.4629,3924.0,3922.6,0.46259329]
[1761318799223,3.397,3923.8,3923.0,2.54905837]
[1761318799394,3.397,3923.8,3923.2,2.54892867]
[1761318799897,0.44,3925.7,3923.4,0.50688]
[1761318800119,3.397,3925.0,3924.2,2.54822616]
[1761318800423,3.397,3925.0,3924.3,2.54821282]
[1761318800623,2.54791258,3924.8,3922.9,0.4371]
[1761318800789,3.407,3924.7,3923.9,2.54847421]
[1761318800997,3.407,3924.7,3923.0,1.9923]